fUST/lending_fUST_20240806
["ID","MTS","AMOUNT","RATE_DAILY","PERIOD"]
[334294702,1722919832384,-150.5,0.00031665,120]
[334294703,1722919832394,-150.5,0.00031665,120]
[334294704,1722919832404,-150.5,0.00031675,120]
[334294705,1722919832413,-150.5,0.00031675,120]
[334294706,1722919832422,-159.3677657,0.00031683,10]
[334294707,1722919832431,-150.112233,0.000317,6]
[334294708,1722919832441,-222.69,0.00031719,3]
[334294709,1722919832451,-185.58,0.00031719,3]
[334294710,1722919832461,-556.76,0.00031719,3]
[334294711,1722919832470,-5697.67,0.00031719,3]
[334294712,1722919832479,-500.0,0.00031728,2]
[334294713,1722919832488,-178.00633592,0.00031728,2]
[334294714,1722919832498,-500.0,0.00031728,2]
[334294715,1722919832507,-500.0,0.00031728,2]
[334294716,1722919832516,-500.0,0.00031728,2]
[334294717,1722919832526,-500.0,0.00031728,2]
[334294718,1722919832536,-500.0,0.00031728,2]
[334294719,1722919832546,-500.0,0.00031728,2]
[334294720,1722919832555,-397.44236844,0.00031728,2]
[334294721,1722919832566,-28569.31664263,0.00031729,60]
[334294722,1722919832578,-718.09857289,0.00031729,60]
[334294774,1722919838278,-862.42234122,0.00021805,2]
[334294776,1722919838290,-447.10690415,0.00031662,2]
[334294778,1722919838301,-475.71350142,0.00031662,2]
[334294792,1722919838441,-500.0,0.00031662,2]
[334294794,1722919838452,-500.0,0.00031662,2]
[334294795,1722919838462,-500.0,0.00031662,2]
[334294796,1722919838472,-500.0,0.00031662,2]
[334294797,1722919838481,-500.0,0.00031662,2]
[334294798,1722919838490,-500.0,0.00031662,2]
[334294799,1722919838499,-500.0,0.00031662,2]
[334294800,1722919838508,-500.0,0.00031662,2]
[334294801,1722919838518,-500.0,0.00031662,2]
[334294802,1722919838527,-500.0,0.00031662,2]
[334294803,1722919838538,-500.0,0.00031662,2]
[334294804,1722919838562,-500.0,0.00031662,2]
[334294805,1722919838571,-500.0,0.00031662,2]
[334294806,1722919838581,-500.0,0.00031662,2]
[334294807,1722919838591,-553.6698886,0.00031662,2]
[334294808,1722919838600,-370.09455199,0.00031662,2]
[334294809,1722919838609,-500.0,0.00031662,2]
[334294810,1722919838619,-500.0,0.00031662,2]
[334294811,1722919838628,-500.0,0.00031662,2]
[334294812,1722919838637,-500.0,0.00031662,2]
[334294813,1722919838646,-500.0,0.00031662,2]
[334294814,1722919838655,-500.0,0.00031662,2]
[334294815,1722919838665,-500.0,0.00031662,2]
[334294816,1722919838675,-500.0,0.00031662,2]
[334294817,1722919838684,-500.0,0.00031662,2]
[334294818,1722919838695,-500.0,0.00031662,2]
[334294819,1722919838704,-500.0,0.00031662,2]
[334294820,1722919838714,-500.0,0.00031662,2]
[334294821,1722919838723,-500.0,0.00031662,2]
[334294822,1722919838733,-500.0,0.00031662,2]
[334294823,1722919838742,-500.0,0.00031662,2]
[334294824,1722919838752,-500.0,0.00031662,2]
[334294825,1722919838761,-500.0,0.00031662,2]
[334294826,1722919838770,-500.0,0.00031662,2]
[334294827,1722919838780,-500.0,0.00031662,2]
[334294828,1722919838789,-500.0,0.00031662,2]
[334294829,1722919838800,-500.0,0.00031662,2]
[334294830,1722919838809,-500.0,0.00031662,2]
[334294831,1722919838819,-500.0,0.00031662,2]
[334294832,1722919838828,-500.0,0.00031662,2]
[334294833,1722919838837,-500.0,0.00031662,2]
[334294834,1722919838846,-500.0,0.00031662,2]
[334294835,1722919838856,-500.0,0.00031662,2]
[334294836,1722919838865,-500.0,0.00031662,2]
[334294837,1722919838874,-500.0,0.00031662,2]
[334294838,1722919838884,-500.0,0.00031662,2]
[334294839,1722919838893,-500.0,0.00031662,2]
[334294840,1722919838902,-500.0,0.00031662,2]
[334294841,1722919838912,-500.0,0.00031662,2]
[334294842,1722919838921,-500.0,0.00031662,2]
[334294843,1722919838930,-500.0,0.00031662,2]
[334294844,1722919838939,-299.69290853,0.00031662,2]
[334294845,1722919838948,-500.0,0.00031662,2]
[334294846,1722919838958,-500.0,0.00031662,2]
[334294847,1722919838967,-500.0,0.00031662,2]
[334294848,1722919838976,-500.0,0.00031662,2]
[334294849,1722919838985,-500.0,0.00031662,2]
[334294850,1722919838996,-500.0,0.00031662,2]
[334294851,1722919839009,-4748.05,0.00031719,3]
[334294852,1722919839021,-108455.52503188,0.00031729,60]
[334294853,1722919839033,-5000.0,0.00031729,30]
[334294854,1722919839046,-29783.76230035,0.00031729,7]
[334294855,1722919839055,-957.8870026,0.00031729,120]
[334294856,1722919839063,-110370.61590404,0.00031729,60]
[334294880,1722919840180,-500.0,0.00031662,2]
[334294882,1722919840190,-500.0,0.00031662,2]
[334294884,1722919840199,-3302.88395964,0.00031729,60]
[334294905,1722919843092,-12933.49631827,0.00031729,60]
[334294907,1722919846271,-113685.60957103,0.00031729,60]
[334294908,1722919846281,-371.16,0.00033089,3]
[334294909,1722919846293,-974.52438413,0.00033197,2]
[334294910,1722919846303,-1845.22963062,0.00033772,2]
[334294911,1722919846315,-154.21,0.000342,31]
[334294912,1722919846326,-163.205146,0.00034703,2]
[334294913,1722919846336,-974.52438413,0.00034765,2]
[334294914,1722919846347,-153.0,0.0003589,2]
[334294915,1722919846357,-1845.22963062,0.0003598,2]
[334294916,1722919846367,-974.52438413,0.00036332,2]
[334294917,1722919846377,-288.0742506,0.00036438,2]
[334294918,1722919846388,-240.9462531,0.00036438,2]
[334294919,1722919846397,-306.0,0.00036438,2]
[334294920,1722919846407,-306.0,0.00036438,2]
[334294921,1722919846419,-151.0,0.0003648,15]
[334294922,1722919846431,-414.1094494,0.00036521,2]
[334294923,1722919846441,-306.7257324,0.00036548,2]
[334294924,1722919846451,-160.953917,0.00036563,2]
[334294925,1722919846461,-271.3686162,0.00036685,2]
[334294926,1722919846470,-271.3686162,0.00036685,2]
[334294927,1722919846479,-154.21,0.000369,31]
[334294928,1722919846490,-150.112233,0.00037,7]
[334294929,1722919846510,-586.2655942,0.0003737,2]
[334294930,1722919846524,-207.0547247,0.0003737,2]
[334294931,1722919846535,-153.0,0.00037507,2]
[334294932,1722919846546,-153.0,0.00037507,2]
[334294933,1722919846556,-153.0,0.00037507,2]
[334294934,1722919846567,-153.0,0.00037507,2]
[334294935,1722919846577,-153.0,0.00037507,2]
[334294936,1722919846587,-153.0,0.00037507,2]
[334294937,1722919846597,-153.0,0.00037507,2]
[334294938,1722919846608,-153.0,0.00037507,2]
[334294939,1722919846619,-153.0,0.00037507,2]
[334294940,1722919846629,-153.0,0.00037507,2]
[334294941,1722919846639,-153.0,0.00037507,2]
[334294942,1722919846649,-153.0,0.00037507,2]
[334294943,1722919846659,-153.0,0.00037507,2]
[334294944,1722919846669,-153.0,0.00037507,2]
[334294945,1722919846679,-153.0,0.00037507,2]
[334294946,1722919846689,-153.0,0.00037507,2]
[334294947,1722919846699,-151.0,0.00037578,15]
[334294948,1722919846709,-151.0,0.00037578,15]
[334294949,1722919846718,-150.654,0.0003767,2]
[334294950,1722919846728,-508.187,0.0003767,2]
[334294951,1722919846738,-1411.0,0.0003767,2]
[334294952,1722919846749,-150.199,0.0003767,2]
[334294953,1722919846759,-974.52438413,0.000379,2]
[334294954,1722919846769,-1471.62474441,0.0003799,21]
[334294955,1722919846779,-35679.4193973,0.0003799,4]
[334294956,1722919846789,-515.28627736,0.00038,2]
[334294957,1722919846798,-22485.98405419,0.00038,2]
[334294958,1722919846808,-151.0,0.00038,7]
[334294959,1722919846819,-151.0,0.00038,7]
[334294960,1722919846828,-151.0,0.00038,7]
[334294961,1722919846839,-151.538831,0.00038,7]
[334294962,1722919846849,-514.662826,0.00038,7]
[334294963,1722919846860,-514.662826,0.00038,7]
[334294964,1722919846869,-852.819691,0.00038,7]
[334294965,1722919846880,-756.056397,0.00038,7]
[334294966,1722919846890,-852.819691,0.00038,7]
[334294967,1722919846900,-756.056397,0.00038,7]
[334294968,1722919846910,-151.0,0.00038,7]
[334294969,1722919846920,-225.942563,0.00038,7]
[334294970,1722919846929,-225.942563,0.00038,7]
[334294971,1722919846941,-1415.886831,0.00038,2]
[334294972,1722919846950,-1415.886831,0.00038,2]
[334294973,1722919846959,-151.0,0.00038,7]
[334294974,1722919846969,-151.0,0.00038,7]
[334294975,1722919846979,-2503.474404,0.00038,7]
[334294976,1722919846989,-2503.474404,0.00038,7]
[334294977,1722919846999,-794.823497,0.00038,7]
[334294978,1722919847009,-151.0,0.00038,7]
[334294979,1722919847019,-794.823497,0.00038,7]
[334294980,1722919847029,-938.380896,0.00038,7]
[334294981,1722919847038,-151.0,0.00038,7]
[334294982,1722919847049,-151.0,0.00038,7]
[334294983,1722919847058,-1114.369814,0.00038,7]
[334294984,1722919847068,-1114.369814,0.00038,7]
[334294985,1722919847078,-499.070802,0.00038,7]
[334294986,1722919847088,-153.876601,0.00038,7]
[334294987,1722919847098,-499.070802,0.00038,7]
[334294988,1722919847108,-151.0,0.00038,7]
[334294989,1722919847117,-509.041514,0.00038,7]
[334294990,1722919847128,-509.041514,0.00038,7]
[334294991,1722919847141,-1391.550618,0.00038,7]
[334294992,1722919847152,-1391.550618,0.00038,7]
[334294993,1722919847162,-151.0,0.00038,7]
[334294994,1722919847171,-381.027447,0.00038,7]
[334294995,1722919847182,-381.027447,0.00038,7]
[334294996,1722919847194,-151.0,0.00038,7]
[334294997,1722919847204,-151.0,0.00038,7]
[334294998,1722919847214,-675.85598208,0.00038146,2]
[334294999,1722919847224,-1845.22963062,0.00038189,2]
[334295000,1722919847233,-306.0,0.00038192,2]
[334295001,1722919847243,-325.1498653,0.00038192,2]
[334295002,1722919847253,-294.2886399,0.00038192,2]
[334295003,1722919847263,-294.2886399,0.00038192,2]
[334295004,1722919847273,-294.2886399,0.00038192,2]
[334295005,1722919847284,-294.3442761,0.00038192,2]
[334295006,1722919847295,-587.8248817,0.00038192,2]
[334295007,1722919847305,-35679.4193973,0.00038235,4]
[334295008,1722919847315,-373.175997,0.00038245,7]
[334295009,1722919847326,-373.175997,0.00038245,7]
[334295010,1722919847336,-151.0,0.00038245,7]
[334295011,1722919847346,-35679.4193973,0.00038246,4]
[334295012,1722919847355,-151.0,0.00038246,7]
[334295013,1722919847520,-1415.886831,0.00038246,2]
[334295014,1722919847530,-1415.886831,0.00038246,2]
[334295015,1722919847540,-151.0,0.00038246,7]
[334295016,1722919847548,-2503.474404,0.00038246,7]
[334295017,1722919847558,-2503.474404,0.00038246,7]
[334295018,1722919847567,-794.823497,0.00038246,7]
[334295019,1722919847576,-153.196912,0.00038246,7]
[334295020,1722919847586,-794.823497,0.00038246,7]
[334295021,1722919847595,-938.380896,0.00038246,7]
[334295022,1722919847605,-151.0,0.00038246,7]
[334295023,1722919847614,-499.070802,0.00038246,7]
[334295024,1722919847623,-499.070802,0.00038246,7]
[334295025,1722919847633,-509.041514,0.00038246,7]
[334295026,1722919847642,-509.041514,0.00038246,7]
[334295027,1722919847651,-1391.550618,0.00038246,7]
[334295028,1722919847660,-1391.550618,0.00038246,7]
[334295029,1722919847670,-151.0,0.00038246,7]
[334295030,1722919847679,-381.027447,0.00038246,7]
[334295031,1722919847688,-381.027447,0.00038246,7]
[334295032,1722919847697,-1314.530753,0.00038256,7]
[334295033,1722919847707,-1314.530753,0.00038256,7]
[334295034,1722919847716,-151.0,0.00038256,7]
[334295035,1722919847724,-198.225773,0.00038256,7]
[334295036,1722919847734,-514.662826,0.00038256,7]
[334295037,1722919847743,-514.662826,0.00038256,7]
[334295038,1722919847752,-756.056397,0.00038256,7]
[334295039,1722919847762,-756.056397,0.00038256,7]
[334295040,1722919847771,-151.0,0.0003828,7]
[334295041,1722919847781,-151.0,0.0003828,7]
[334295042,1722919847791,-151.0,0.0003828,7]
[334295043,1722919847800,-1114.369814,0.0003828,7]
[334295044,1722919847810,-1114.369814,0.0003828,7]
[334295045,1722919847819,-151.0,0.0003828,7]
[334295046,1722919847828,-151.0,0.0003829,7]
[334295047,1722919847837,-151.0,0.0003829,7]
[334295048,1722919847847,-514.662826,0.0003829,7]
[334295049,1722919847856,-514.662826,0.0003829,7]
[334295050,1722919847866,-151.0,0.0003829,7]
[334295051,1722919847875,-151.0,0.0003829,7]
[334295052,1722919847885,-282.430405,0.0003829,7]
[334295053,1722919847894,-151.0,0.0003829,7]
[334295054,1722919847903,-151.0,0.0003829,7]
[334295055,1722919847912,-852.819691,0.0003829,7]
[334295056,1722919847921,-852.819691,0.0003829,7]
[334295057,1722919847931,-756.056397,0.0003829,7]
[334295058,1722919847940,-852.819691,0.0003829,7]
[334295059,1722919847950,-852.819691,0.0003829,7]
[334295060,1722919847959,-756.056397,0.0003829,7]
[334295061,1722919847968,-151.0,0.0003829,7]
[334295062,1722919847978,-151.0,0.0003829,7]
[334295063,1722919847987,-151.0,0.0003829,7]
[334295064,1722919847995,-225.942563,0.0003829,7]
[334295065,1722919848005,-225.942563,0.0003829,7]
[334295066,1722919848014,-151.0,0.0003829,7]
[334295067,1722919848023,-151.0,0.0003829,7]
[334295068,1722919848032,-225.942563,0.0003829,7]
[334295069,1722919848043,-225.942563,0.0003829,7]
[334295070,1722919848053,-1415.886831,0.0003829,2]
[334295071,1722919848062,-1415.886831,0.0003829,2]
[334295072,1722919848071,-154.689158,0.0003829,7]
[334295073,1722919848081,-151.0,0.0003829,7]
[334295074,1722919848090,-2503.474404,0.0003829,7]
[334295075,1722919848100,-2503.474404,0.0003829,7]
[334295076,1722919848109,-794.823497,0.0003829,7]
[334295077,1722919848119,-794.823497,0.0003829,7]
[334295078,1722919848128,-938.380896,0.0003829,7]
[334295079,1722919848138,-151.0,0.0003829,7]
[334295080,1722919848147,-151.0,0.0003829,7]
[334295081,1722919848156,-1114.369814,0.0003829,7]
[334295082,1722919848165,-415.78438363,0.0003829,7]
[334295103,1722920737151,-195.6718464,0.00014147,2]
[334295104,1722920737174,-163.213102,0.00014247,2]
[334295105,1722920737197,-161.322176,0.00014247,2]
[334295106,1722920737220,-233.35366751,0.0002028,2]
[334295107,1722920759112,-52.86692282,0.0002028,2]
[334295108,1722920759149,-172.19506877,0.0002028,2]
[334295110,1722920825108,-300.0,0.00019998,2]
[334295111,1722920825129,-341.03212824,0.00019999,2]
[334295112,1722920826121,-5526.88994941,0.00019999,2]
[334295113,1722920828155,-242.50333505,0.00019999,2]
[334295114,1722920834103,-862.42234122,0.00019999,2]
[334295115,1722920834126,-126.69366011,0.00019999,2]
[334295116,1722920838120,-434.07691554,0.00019547,2]
[334295117,1722920840100,-1941.86551315,0.00019547,2]
[334295118,1722920842098,-898.30280506,0.00019547,2]
[334295119,1722920845103,-648.06542647,0.00019547,2]
[334295120,1722920959383,153.22609243,0.00019256,2]
[334295121,1722920965164,-8957.54259505,0.00019256,2]
[334295122,1722920965186,-249.0,0.00019476,2]
[334295123,1722920965206,-922.64225028,0.00019477,2]
[334295124,1722920965229,-250.38146921,0.00019477,2]
[334295125,1722920965249,-154.72922386,0.00019547,2]
[334295126,1722920968081,-151.6888442,0.00019999,2]
[334295127,1722920970098,-3.04037966,0.00019999,2]
[334295128,1722920970121,-150.77388702,0.00019999,2]
[334295129,1722920974127,-4.12536663,0.00019999,2]
[334295130,1722920974149,-321.85466379,0.00019999,2]
[334295131,1722920974169,-2142.0040495,0.00020236,2]
[334295132,1722920974190,-1290.65240938,0.0002028,2]
[334295158,1722921032436,-174.91997391,0.00019999,2]
[334295159,1722921032450,-258.09199854,0.00019999,2]
[334295160,1722921032464,-291.23882018,0.0002028,2]
[334295161,1722921032477,-1288.6896446,0.00020424,2]
[334295162,1722921032492,-250.0,0.00020563,2]
[334295163,1722921032505,-250.0,0.00020673,2]
[334295164,1722921032519,-239.375909,0.00020814,2]
[334295165,1722921032535,-170.238506,0.00021032,2]
[334295166,1722921032549,-371.2726837,0.00021599,2]
[334295167,1722921032563,-194.5599409,0.00021599,2]
[334295168,1722921032577,-385.76908016,0.00021609,2]
[334295169,1722921032592,-202.10795032,0.00021609,2]
[334295170,1722921032605,-156.85069415,0.00021632,2]
[334295171,1722921032618,-156.85069415,0.00021632,2]
[334295172,1722921032632,-195.83468272,0.00021806,2]
[334295173,1722921032647,-500.0,0.00023092,2]
[334295174,1722921032660,-500.0,0.00023092,2]
[334295175,1722921032673,-447.10690415,0.00023092,2]
[334295176,1722921032688,-500.0,0.00023092,2]
[334295177,1722921032701,-500.0,0.00023092,2]
[334295178,1722921032714,-475.71350142,0.00023092,2]
[334295179,1722921032728,-500.0,0.00023092,2]
[334295180,1722921032741,-500.0,0.00023092,2]
[334295181,1722921032751,-500.0,0.00023092,2]
[334295182,1722921032760,-500.0,0.00023092,2]
[334295183,1722921032772,-500.0,0.00023092,2]
[334295184,1722921032984,-500.0,0.00023092,2]
[334295185,1722921033000,-500.0,0.00023092,2]
[334295186,1722921033010,-500.0,0.00023092,2]
[334295187,1722921033022,-420.09455199,0.00023092,2]
[334295188,1722921033032,-500.0,0.00023092,2]
[334295189,1722921033041,-500.0,0.00023092,2]
[334295190,1722921033050,-297.23681268,0.00023092,2]
[334295191,1722921033059,-500.0,0.00023092,2]
[334295192,1722921033069,-500.0,0.00023092,2]
[334295193,1722921033081,-500.0,0.00023092,2]
[334295194,1722921033091,-500.0,0.00023092,2]
[334295195,1722921033100,-500.0,0.00023092,2]
[334295196,1722921033110,-500.0,0.00023092,2]
[334295197,1722921033119,-500.0,0.00023092,2]
[334295198,1722921033129,-500.0,0.00023092,2]
[334295199,1722921033139,-500.0,0.00023092,2]
[334295200,1722921033149,-500.0,0.00023092,2]
[334295201,1722921033159,-500.0,0.00023092,2]
[334295202,1722921033169,-500.0,0.00023092,2]
[334295203,1722921033178,-500.0,0.00023092,2]
[334295204,1722921033188,-500.0,0.00023092,2]
[334295205,1722921033198,-500.0,0.00023092,2]
[334295206,1722921033208,-500.0,0.00023092,2]
[334295207,1722921033217,-500.0,0.00023092,2]
[334295208,1722921033226,-500.0,0.00023092,2]
[334295209,1722921033235,-500.0,0.00023092,2]
[334295210,1722921033245,-500.0,0.00023092,2]
[334295211,1722921033254,-500.0,0.00023092,2]
[334295212,1722921033264,-500.0,0.00023092,2]
[334295213,1722921033278,-500.0,0.00023092,2]
[334295214,1722921033287,-500.0,0.00023092,2]
[334295215,1722921033297,-500.0,0.00023092,2]
[334295216,1722921033306,-500.0,0.00023092,2]
[334295217,1722921033315,-500.0,0.00023092,2]
[334295218,1722921033325,-500.0,0.00023092,2]
[334295219,1722921033334,-500.0,0.00023092,2]
[334295220,1722921033344,-500.0,0.00023092,2]
[334295221,1722921033353,-500.0,0.00023092,2]
[334295222,1722921033363,-500.0,0.00023092,2]
[334295223,1722921033373,-500.0,0.00023092,2]
[334295224,1722921033383,-500.0,0.00023092,2]
[334295225,1722921033394,-500.0,0.00023092,2]
[334295226,1722921033403,-500.0,0.00023092,2]
[334295227,1722921033414,-500.0,0.00023092,2]
[334295228,1722921033424,-500.0,0.00023092,2]
[334295229,1722921033434,-500.0,0.00023092,2]
[334295230,1722921033443,-500.0,0.00023092,2]
[334295231,1722921033453,-500.0,0.00023092,2]
[334295232,1722921033463,-500.0,0.00023092,2]
[334295233,1722921033472,-500.0,0.00023092,2]
[334295234,1722921033482,-500.0,0.00023092,2]
[334295235,1722921033492,-500.0,0.00023092,2]
[334295236,1722921033501,-500.0,0.00023092,2]
[334295237,1722921033512,-500.0,0.00023092,2]
[334295238,1722921033525,-500.0,0.00023092,2]
[334295239,1722921033534,-500.0,0.00023092,2]
[334295240,1722921033543,-500.0,0.00023092,2]
[334295241,1722921033553,-500.0,0.00023092,2]
[334295242,1722921033562,-500.0,0.00023092,2]
[334295243,1722921033572,-500.0,0.00023092,2]
[334295244,1722921033582,-500.0,0.00023092,2]
[334295245,1722921033592,-500.0,0.00023092,2]
[334295246,1722921033602,-500.0,0.00023092,2]
[334295247,1722921033612,-500.0,0.00023092,2]
[334295248,1722921033622,-500.0,0.00023092,2]
[334295249,1722921033632,-500.0,0.00023092,2]
[334295250,1722921033643,-500.0,0.00023092,2]
[334295251,1722921033654,-500.0,0.00023092,2]
[334295252,1722921033664,-500.0,0.00023092,2]
[334295253,1722921033674,-500.0,0.00023092,2]
[334295254,1722921033686,-500.0,0.00023092,2]
[334295255,1722921033700,-500.0,0.00023092,2]
[334295256,1722921033710,-500.0,0.00023092,2]
[334295257,1722921033720,-500.0,0.00023092,2]
[334295258,1722921033731,-500.0,0.00023092,2]
[334295259,1722921033741,-500.0,0.00023092,2]
[334295260,1722921033750,-406.00691913,0.00023092,2]
[334295264,1722921038488,-26.944815,0.00024581,2]
[334295265,1722921038507,-6443.21912045,0.00024581,2]
[334295266,1722921038518,-251.88662602,0.00024581,2]
[334295267,1722921038532,-161.322176,0.00027884,2]
[334295268,1722921038542,-500.0,0.00029,30]
[334295269,1722921038553,-195.0,0.00029,30]
[334295270,1722921038563,-5000.0,0.00031753,120]
[334295271,1722921038575,-5000.0,0.00031753,120]
[334295272,1722921038586,-5000.0,0.00031753,120]
[334295273,1722921038595,-5000.0,0.00031753,120]
[334295274,1722921038605,-5000.0,0.00031753,120]
[334295275,1722921038615,-500.0,0.00035259,7]
[334295276,1722921038625,-500.0,0.00035259,7]
[334295277,1722921038635,-228.20965791,0.00035259,7]
[334295278,1722921038645,-500.0,0.00035259,7]
[334295279,1722921038655,-500.0,0.00035259,7]
[334295280,1722921038664,-500.0,0.00035259,7]
[334295281,1722921038673,-1411.0,0.00036364,2]
[334295282,1722921038686,-4748.05,0.0003698,3]
[334295283,1722921038696,-3956.71,0.0003698,3]
[334295284,1722921038706,-3297.26,0.0003699,3]
[334295285,1722921038716,-31614.4407903,0.0003699,4]
[334295286,1722921038727,-31727.35,0.00037,5]
[334295287,1722921038737,-29478.09629362,0.0003798,4]
[334295299,1722921040462,-501.98208771,0.0003798,4]
[334295319,1722921043322,-155.02218063,0.0002799,2]
[334295320,1722921043332,-1634.36240897,0.0003798,4]
[334295321,1722921043342,-14910.6154104,0.0003799,4]
[334295377,1722921088857,53.1252828,0.00014247,2]
[334295378,1722921088880,110.0991852,0.00014247,2]
[334295389,1722921935136,-300.0,0.00014246,2]
[334295390,1722921935158,-162.137444,0.00014247,2]
[334295391,1722921935180,-25.52960276,0.00014247,2]
[334295392,1722921957199,-1007.97198031,0.00014247,2]
[334295393,1722921957221,-238.18418036,0.00014247,2]
[334295397,1722922036097,-665.34612845,0.00014247,2]
[334295398,1722922042094,-573.13827587,0.00014247,2]
[334295399,1722922044408,-571.03654316,0.00014247,2]
[334295400,1722922047091,-525.41854307,0.00014247,2]
[334295401,1722922047121,-409.56159162,0.00014247,2]
[334295402,1722922048372,-1722.7010965,0.00014247,2]
[334295403,1722922053119,-1183.94380106,0.00014247,2]
[334295404,1722922054368,533.62513603,9.999e-05,2]
[334295405,1722922056760,371.51375407,9.999e-05,2]
[334295406,1722922063842,155.03127496,9.999e-05,2]
[334295408,1722922083608,194.10374007,9.999e-05,2]
[334295423,1722922146172,-6089.5254572,0.00014247,2]
[334295424,1722922146194,-1089.09419378,0.00016038,2]
[334295425,1722922146216,-474.72950743,0.00016095,2]
[334295426,1722922146237,-679.76884316,0.00016159,2]
[334295427,1722922146261,-1091.57771247,0.00016309,2]
[334295428,1722922146282,-209.7052712,0.00016309,2]
[334295429,1722922146303,-154.960527,0.00016309,2]
[334295430,1722922146325,-154.92106328,0.00016309,2]
[334295431,1722922146350,-410.62296882,0.00016309,2]
[334295432,1722922146374,-337.14914414,0.00016309,2]
[334295433,1722922146395,-194.5599409,0.00016347,2]
[334295434,1722922146416,-2059.34554009,0.00016347,2]
[334295435,1722922146440,-587.90068637,0.00016532,2]
[334295436,1722922146461,-629.55749815,0.00017019,2]
[334295439,1722922149294,-51.52742522,0.00017019,2]
[334295440,1722922149318,-250.0,0.00017225,2]
[334295441,1722922149507,-471.46607828,0.00019451,2]
[334295442,1722922155192,-2376.89718624,0.00019451,2]
[334295443,1722922155214,-156.95333335,0.00019547,2]
[334295444,1722922155234,-187.83865754,0.00019998,2]
[334295445,1722922156084,-245.0,0.00019998,2]
[334295446,1722922166108,-67.16134246,0.00019998,2]
[334295447,1722922166143,-84.29187056,0.00019998,2]
[334295507,1722922232478,-355.59824947,0.00019999,2]
[334295509,1722922232488,-415.45128053,0.00019999,2]
[334295512,1722922232504,-225.19197704,0.00019999,2]
[334295515,1722922232514,-1230.21838021,0.0002,2]
[334295517,1722922232523,-255.73096813,0.0002,2]
[334295520,1722922232533,-284.65229118,0.0002,2]
[334295523,1722922232543,-4480.86631485,0.0002,2]
[334295527,1722922232553,-271.17458586,0.0002,2]
[334295529,1722922232564,-245.36442119,0.00022,2]
[334295531,1722922232574,-510.41243711,0.0002217,2]
[334295533,1722922232583,-162.137444,0.00023688,2]
[334295535,1722922232592,-5568.73001376,0.00031749,7]
[334295613,1722922243729,-500.0,0.00021999,2]
[334295614,1722922243740,-213.34383911,0.00021999,2]
[334295615,1722922243752,-500.0,0.00021999,2]
[334295616,1722922243761,-500.0,0.00021999,2]
[334295617,1722922243771,-500.0,0.00021999,2]
[334295618,1722922243780,-500.0,0.00021999,2]
[334295619,1722922243789,-500.0,0.00021999,2]
[334295621,1722922243799,-500.0,0.00021999,2]
[334295622,1722922243808,-500.0,0.00021999,2]
[334295623,1722922243818,-500.0,0.00021999,2]
[334295624,1722922243827,-500.0,0.00021999,2]
[334295625,1722922243836,-500.0,0.00021999,2]
[334295626,1722922243846,-500.0,0.00021999,2]
[334295627,1722922243856,-500.0,0.00021999,2]
[334295628,1722922243867,-423.98854158,0.00021999,2]
[334295629,1722922243877,-403.1489771,0.00021999,2]
[334295630,1722922243889,-96.8510229,0.00021999,2]
[334295631,1722922243899,-500.0,0.00021999,2]
[334295632,1722922243909,-500.0,0.00021999,2]